fUSD/lending_fUSD_20250116
["ID","MTS","AMOUNT","RATE_DAILY","PERIOD"]
[349146537,1736992232739,-453.57547947,0.00022959,2]
[349146538,1736992232748,-500.0,0.00022973,2]
[349146539,1736992232757,-197.97464868,0.00022973,2]
[349146540,1736992232770,-230.05872381,0.00022973,2]
[349146541,1736992232779,-26.64237849,0.00022999,2]
[349146542,1736992232791,-480.94553874,0.00022999,2]
[349146543,1736992232800,-22.38138736,0.00022999,2]
[349146544,1736992232812,-281.28988996,0.00022999,2]
[349146545,1736992232823,-696.32872268,0.00022999,2]
[349146546,1736992232833,-299.99,0.00022999,7]
[349146547,1736992232844,-300.0,0.00022999,2]
[349146548,1736992232853,-196.4574733,0.00023,2]
[349146549,1736992232862,-5923.20589766,0.00023,2]
[349146550,1736992232874,-278.06409137,0.00023,2]
[349146551,1736992232913,-2235.54614608,0.00023,2]
[349146552,1736992232925,-535.04086088,0.00023,2]
[349146553,1736992232939,-3912.15955773,0.00023,2]
[349146554,1736992232950,-2614.97457783,0.00023,2]
[349146555,1736992232961,-3653.74999986,0.00023,2]
[349146556,1736992232972,-986.35646838,0.00023,2]
[349146557,1736992232985,-10533.61196256,0.00023,2]
[349146558,1736992232997,-619.53546235,0.00023,2]
[349146559,1736992233010,-1074.17426877,0.00023,2]
[349146560,1736992233023,-409.8822205,0.00023,2]
[349146561,1736992233035,-2185.53507333,0.00023,2]
[349146562,1736992238327,-54601.37451897,0.00023,2]
[349146563,1736992238340,-6457.74660382,0.00023,2]
[349146564,1736992238354,-500.0,0.00023,2]
[349146565,1736992238367,-3361.71233782,0.00023,2]
[349146566,1736992238535,-755.50645518,0.00023,2]
[349146567,1736992238547,-250.49,0.00023,2]
[349146568,1736992238559,-500.0,0.00023,2]
[349146569,1736992238748,-3375910.36185707,0.00023,2]
[349146725,1736992240574,-8737.6985355,0.00023,2]
[349146727,1736992240585,-6904.32637633,0.00023,2]
[349146729,1736992240597,-557.67574885,0.00023,2]
[349146732,1736992240609,-1420.50438032,0.00023,2]
[349146747,1736992240746,-861.64145334,0.00023,2]
[349146749,1736992240758,-1566.29578919,0.00023,2]
[349146751,1736992240769,-814.6,0.00023,2]
[349146754,1736992240781,-1100.817,0.00023,2]
[349146756,1736992240793,-333.58518724,0.00023,2]
[349146758,1736992240803,-48970.72860719,0.00023,2]
[349146760,1736992240816,-115191.30887894,0.00023,2]
[349146762,1736992240827,-59236.4999796,0.00023,2]
[349146764,1736992240839,-93287.0,0.00023,2]
[349146774,1736992240928,-217198.43355193,0.00023,2]
[349147021,1736992243383,-562.39668,0.00023,2]
[349147022,1736992243393,-419.81087525,0.00023,2]
[349147023,1736992243404,-487.98,0.00023,2]
[349147025,1736992243415,-505.79,0.00023,2]
[349147027,1736992243427,-744.5,0.00023,2]
[349147029,1736992243439,-7509.99559041,0.00023,2]
[349147286,1736992246369,-2122.4739642,0.00023,2]
[349147288,1736992246381,-1918.88336097,0.00023,2]
[349147290,1736992246393,-656.64816296,0.00023,2]
[349147293,1736992246404,-8540.0,0.00023,2]
[349147296,1736992246416,-8413.025585,0.00023,2]
[349147298,1736992246427,-5938.15424704,0.00023,2]
[349147300,1736992246438,-353.7935189,0.00023,2]
[349147302,1736992246449,-9958.5,0.00023,2]
[349147305,1736992246459,-1264.76750391,0.00023,2]
[349147316,1736992246559,-7560.19213976,0.00023,2]
[349147319,1736992246571,-481.96507016,0.00023,2]
[349147321,1736992246582,-2089.3336356,0.00023,2]
[349147323,1736992246592,-40124.81351,0.00023,2]
[349147325,1736992246603,-8423.68977477,0.00023,2]
[349147327,1736992246615,-2069.98095103,0.00023,2]
[349147330,1736992246626,-401.96291768,0.00023,2]
[349147343,1736992246746,-1056.04845593,0.00023,2]
[349147716,1736992250583,1395.92,0.0002311,120]
[349149505,1736992753176,41501.4187663,0.00011,2]
[349149520,1736993420822,158.63,0.00010137,2]
[349149523,1736993432641,-3373.0,0.00021804,30]
[349149524,1736993432650,-4421.62902322,0.00022348,2]
[349149525,1736993432660,-300.0,0.00022448,2]
[349149526,1736993432669,-3082.00614605,0.00022449,2]
[349149527,1736993432683,-1000.7,0.00022449,2]
[349149528,1736993432793,-421.3557999,0.00022449,2]
[349149529,1736993432805,-2322.89498702,0.00022449,2]
[349149530,1736993432815,-163.58846744,0.000229,2]
[349149531,1736993432824,-207.39370886,0.000229,2]
[349149532,1736993432833,-500.0,0.00022973,2]
[349149533,1736993432843,-945.32941208,0.00022999,2]
[349149534,1736993432857,-1018.00558792,0.00022999,2]
[349149535,1736993432867,-153.073,0.00022999,2]
[349149536,1736993432877,-1000.0,0.00022999,2]
[349149537,1736993432887,-500.0,0.00022999,2]
[349149538,1736993432897,-251.40270864,0.00022999,2]
[349149539,1736993433569,-198.59729136,0.00022999,2]
[349149540,1736993433580,-303.45040264,0.00022999,2]
[349149541,1736993433590,-11114.95712671,0.00023,4]
[349149547,1736993438499,-8013.03588428,0.00023,4]
[349149548,1736993438511,-7890.45969147,0.00023,4]
[349149549,1736993438701,-3161.71124484,0.00023,4]
[349149550,1736993438732,-26394.90204148,0.00023,4]
[349149551,1736993438743,-518.526006,0.00023,4]
[349149552,1736993438902,-69040.2038232,0.00023,4]
[349149554,1736993438912,-3314074.98068265,0.00023,2]
[349149557,1736993441000,-236934.87743595,0.00023,2]
[349149558,1736993441011,-717.70335969,0.00023,2]
[349149559,1736993441193,-7197.21257809,0.00023,2]
[349149560,1736993441204,-381.28266465,0.00023,2]
[349149589,1736993443849,-135761.00524484,0.00023,2]
[349149591,1736993443864,-429.93787537,0.00023,2]
[349149593,1736993443876,-956.75,0.00023,2]
[349149596,1736993443888,-26397.05565944,0.00023,2]
[349149615,1736993444258,-642.98840585,0.00023,2]
[349149617,1736993446710,-2444.29999904,0.00023,2]
[349149618,1736993446722,-315.70737983,0.00023,2]
[349149619,1736993446974,-18260.54503093,0.00023,2]
[349149620,1736993446985,-1004.35813015,0.00023,2]
[349149621,1736993446997,-181718.30811139,0.00023,2]
[349149627,1736994308587,917090.02286943,0.00012,2]
[349149630,1736994368954,160.45,0.00010137,2]
[349149632,1736994387830,697.96,0.00012,2]
[349149635,1736994406918,697.95,0.0002311,120]
[349149636,1736994481240,174612.47798956,0.0001,2]
[349149641,1736994521160,8038.89985579,0.0001,2]
[349149657,1736994631737,-2488.634422,0.000175,5]
[349149658,1736994631746,-221.73087323,0.00021718,2]
[349149659,1736994631755,-178.27211992,0.00021818,90]
[349149660,1736994631764,-151.39160181,0.00021818,30]
[349149661,1736994631772,-151.60911798,0.00021818,30]
[349149662,1736994631780,-158.11,0.0002185,2]
[349149663,1736994631789,-300.0,0.00021999,2]
[349149664,1736994631798,-1675.79402268,0.00022,3]
[349149665,1736994631808,-5326.21183776,0.00022,3]
[349149666,1736994631817,-1864.79731,0.0002277,2]
[349149667,1736994631825,-221.73087323,0.000229,2]
[349149668,1736994631833,-502.07351581,0.00022973,2]
[349149669,1736994631842,-2036.554,0.00022999,2]
[349149670,1736994631852,-158.711,0.00022999,2]
[349149671,1736994631861,-150.0,0.00022999,2]
[349149672,1736994631870,-4605.43072432,0.00023,2]
[349149673,1736994631884,-119525.00100476,0.00023,2]
[349149674,1736994631895,-11730.10420396,0.00023,2]
[349149675,1736994631906,-6094.01024252,0.00023,2]
[349149676,1736994631921,-11947.12165106,0.00023,2]
[349149677,1736994632018,-736730.67507823,0.00023,2]
[349149678,1736994632030,-3427.08347967,0.00023,2]
[349149679,1736994632041,-903.38703061,0.00023,2]
[349149680,1736994632051,-5433.45583817,0.00023,2]
[349149681,1736994632061,-495226.81633315,0.00023,2]
[349149682,1736994632159,-1089.69,0.00023,2]
[349149683,1736994632170,-2499.96256852,0.00023,2]
[349149684,1736994632181,-255.855,0.00023,2]
[349149690,1736994637649,-4518.1242895,0.00023,2]
[349149691,1736994637661,-40141.58060837,0.00023,2]
[349149692,1736994637673,-1937.25,0.00023,2]
[349149693,1736994637785,-51515.25573807,0.00023,2]
[349149694,1736994637915,-1764.41908967,0.00023,2]
[349149695,1736994638051,-392.94026559,0.00023,2]
[349149697,1736994638063,-976.2,0.00023,2]
[349149699,1736994638075,-3264.13760739,0.00023,2]
[349149728,1736994639995,-28406.93744665,0.00023,2]
[349149729,1736994640009,-15647.58,0.00023,2]
[349149730,1736994640020,-561.72946,0.00023,2]
[349149731,1736994640116,-110085.76685547,0.00023,2]
[349149732,1736994640128,-1787.69573288,0.00023,2]
[349149733,1736994640244,-1057.51905768,0.00023,2]
[349149742,1736994642713,-74164.38696688,0.00023,2]
[349149744,1736994642848,-207.39370886,0.000229,2]
[349149745,1736994642858,-1610.27692114,0.00023,2]
[349149746,1736994642871,-1765.7713395,0.00023,2]
[349149747,1736994642882,-4079.34492294,0.00023,2]
[349149748,1736994642969,-541.381329,0.00023,2]
[349149750,1736994645850,-171316.09306375,0.00023,2]
[349149751,1736994645860,-600.09174521,0.00023,2]
[349149752,1736994645870,-201.23,0.00023,7]
[349149753,1736994645880,-905.45921561,0.00023,2]
[349149754,1736994645889,-55227.9905614,0.00023,2]
[349149755,1736994645899,-1385.381,0.00023096,10]
[349149756,1736994645909,-1946.0,0.000231,2]
[349149757,1736994645919,-200.0,0.0002311,2]
[349149758,1736994645929,-420.0,0.00023906,2]
[349149759,1736994645939,-768.67,0.00024473,2]
[349149760,1736994645948,-325.0,0.000247,2]
[349149761,1736994645958,-153.5808117,0.0002497,120]
[349149762,1736994645968,-499.999999,0.00025,2]
[349149763,1736994645979,-2854.53,0.00025085,2]
[349149764,1736994645988,-1864.79732,0.0002527,2]
[349149765,1736994645998,-167.33,0.00025862,2]
[349149766,1736994646008,-587.0,0.00025977,2]
[349149767,1736994646018,-916.95,0.00026292,2]
[349149768,1736994646027,-873.0,0.00026841,120]
[349149769,1736994646037,-873.0,0.00026851,120]
[349149770,1736994646047,-873.0,0.00026861,120]
[349149771,1736994646057,-496.41,0.00026871,120]
[349149772,1736994646067,-167.33,0.00027285,2]
[349149773,1736994646078,-387.24,0.00027472,2]
[349149774,1736994646088,-768.67,0.00027532,120]
[349149775,1736994646097,-1864.79732,0.0002777,2]
[349149776,1736994646107,-737.0,0.00028229,2]
[349149777,1736994646116,-199.0,0.000287,120]
[349149778,1736994646126,-167.33,0.00028708,2]
[349149779,1736994646136,-752.0,0.00029733,5]
[349149780,1736994646146,-157.343,0.0002989,120]
[349149781,1736994646155,-151.0,0.0003,120]
[349149782,1736994646165,-150.0,0.0003,120]
[349149783,1736994646175,-7896.53579075,0.0003,2]
[349149784,1736994646184,-600.49165623,0.000301,2]
[349149785,1736994646194,-325.17148519,0.000301,2]
[349149786,1736994646204,-167.33,0.00030131,2]
[349149787,1736994646214,-496.41,0.00030229,120]
[349149788,1736994646223,-1864.79732,0.0003027,2]
[349149789,1736994646233,-768.67,0.00030591,120]
[349149790,1736994646243,-157.369,0.0003109,120]
[349149792,1736994646252,-435.88,0.00031472,2]
[349149794,1736994646262,-151.0,0.00031808,120]
[349149796,1736994646271,-1512.98,0.00031911,2]
[349149798,1736994646281,-150.0,0.00032,120]
[349149799,1736994646290,-157.43,0.0003229,120]
[349149800,1736994646300,-312.52,0.00032362,2]
[349149801,1736994646309,-458.37,0.00032491,2]
[349149802,1736994646319,-23900.0,0.00032494,2]
[349149803,1736994646328,-250.0,0.00032514,2]
[349149804,1736994646337,-1000.0,0.00032526,2]
[349149805,1736994646347,-165.58,0.00032609,2]
[349149806,1736994646356,-456.18,0.00032662,2]
[349149807,1736994646366,-161.87,0.00032712,2]
[349149808,1736994646375,-1864.79731,0.0003277,2]
[349149809,1736994646385,-250.0,0.00032859,2]
[349149810,1736994646395,-1094.83,0.00032979,2]
[349149811,1736994646404,-150.0,0.00033,120]
[349149812,1736994646414,-200.0,0.00033119,2]
[349149813,1736994646424,-167.23,0.00033136,2]
[349149814,1736994646435,-1124.53,0.00033257,2]
[349149815,1736994646445,-300.0,0.00033274,2]
[349149816,1736994646455,-250.0,0.00033421,2]
[349149817,1736994646464,-176.96,0.00033433,2]
[349149818,1736994646474,-500.0,0.00033436,2]
[349149819,1736994646483,-157.371,0.0003349,120]
[349149820,1736994646493,-496.41,0.00033588,120]
[349149821,1736994646503,-151.0,0.00033616,120]
[349149822,1736994646512,-768.67,0.0003365,120]
[349149823,1736994646522,-435.88,0.00033736,2]
[349149824,1736994646531,-312.52,0.0003398,2]
[349149825,1736994646541,-167.9,0.00034187,2]
[349149826,1736994646551,-150.0,0.00034548,10]
[349149827,1736994646560,-157.417,0.0003469,120]
[349149828,1736994646570,-169.13,0.00034931,2]
[349149829,1736994646580,-200.0,0.00035,120]
[349149830,1736994646590,-1864.79732,0.0003527,2]
[349149831,1736994646599,-151.0,0.00035425,120]
[349149832,1736994646608,-312.52,0.00035598,2]
[349149833,1736994646619,-157.384,0.0003589,120]
[349149834,1736994646628,-150.0,0.00036,120]
[349149835,1736994646638,-435.88,0.00036,2]
[349149836,1736994646647,-1000.0,0.00036592,2]
[349149837,1736994646657,-768.67,0.00036709,120]
[349149838,1736994646666,-200.0,0.00036762,2]
[349149839,1736994646675,-916.95,0.00036808,2]
[349149840,1736994646685,-496.41,0.00036947,120]
[349149841,1736994646696,-157.359,0.0003709,120]
[349149842,1736994646708,-312.52,0.00037216,2]
[349149843,1736994646717,-151.0,0.00037233,120]
[349149844,1736994646727,-690.96,0.00038205,2]
[349149845,1736994646736,-435.88,0.00038264,2]
[349149846,1736994646748,-312.52,0.00038834,2]
[349149847,1736994646757,-151.0,0.00039041,120]
[349149848,1736994646767,-1867.267,0.00039244,2]
[349149849,1736994646776,-822.0,0.00039244,2]
[349149850,1736994646786,-944.416,0.00039244,2]
[349149851,1736994646795,-2952.032,0.00039244,2]
[349149852,1736994646804,-1271.16,0.00039244,2]
[349149853,1736994646814,-3990.086,0.00039244,2]
[349149854,1736994646824,-539.413,0.00039244,2]
[349149855,1736994646833,-1271.521,0.00039244,2]
[349149856,1736994646842,-2021.965,0.00039244,2]
[349149857,1736994646851,-3913.979,0.00039244,2]
[349149858,1736994646861,-1284.322,0.00039244,2]
[349149859,1736994646871,-151.455,0.00039244,2]
[349149860,1736994646880,-150.544,0.00039244,2]
[349149861,1736994646890,-173.01,0.00039635,3]
[349149862,1736994646899,-438.04,0.00039726,2]
[349149863,1736994646909,-466.3094,0.00039799,2]
[349149864,1736994646918,-500.0,0.00039799,7]
[349149865,1736994646927,-964.9600152,0.000398,120]
[349149866,1736994646936,-22843.41717115,0.000398,120]
[349149867,1736994646949,-302.40139359,0.000398,120]
[349149868,1736994647026,-589.74355941,0.000398,120]
[349150033,1736995338434,5000.0,0.00012,2]
[349150044,1736995831891,-379.99999,0.000227,2]
[349150045,1736995831903,-1513.00001,0.000227,2]
[349150046,1736995831913,-158.13844959,0.000228,2]
[349150048,1736995831924,-3164.848,0.000229,2]
[349150050,1736995831934,-196.0,0.0003,120]
[349150051,1736995831944,-838.83437771,0.0003,120]
[349150052,1736995831954,-158.13844959,0.00030716,2]
[349150053,1736995831963,-200.0,0.00032,120]
[349150054,1736995831973,-850.0,0.00032,120]
[349150055,1736995831982,-400.0,0.00033999,2]
[349150056,1736995831993,-200.0,0.00034,120]
[349150057,1736995832003,-750.0,0.00034,120]
[349150058,1736995832012,-150.0,0.00034548,10]
[349150059,1736995832022,-150.0,0.00036,120]
[349150060,1736995832036,-367.56,0.00036098,2]
[349150061,1736995832047,-320.0,0.00036492,2]
[349150062,1736995832058,-200.0,0.00037367,2]
[349150063,1736995832068,-23900.0,0.00037372,2]
[349150064,1736995832079,-250.0,0.00037442,2]
[349150065,1736995832093,-242.38,0.00037524,2]
[349150066,1736995832103,-172.86,0.00037593,2]
[349150067,1736995832113,-299.95,0.00037641,120]
[349150068,1736995832123,-1000.0,0.00037704,2]
[349150069,1736995832133,-500.0,0.00037805,2]
[349150070,1736995832143,-250.0,0.00037892,120]
[349150071,1736995832154,-169.0,0.00038,120]
[349150072,1736995832163,-650.0,0.00038,120]
[349150073,1736995832180,-4688.0,0.00038232,2]
[349150074,1736995832190,-367.56,0.00038362,2]
[349150075,1736995832201,-158.13844959,0.00038632,2]
[349150076,1736995832211,-7890.17,0.00038684,2]
[349150077,1736995832222,-1365.95891352,0.00038694,2]
[349150078,1736995832234,-498.92723845,0.00038694,2]
[349150079,1736995832246,-4446.40001196,0.00038694,2]
[349150080,1736995832293,-1578.88383607,0.00038694,2]
[349150081,1736995832304,-7890.17,0.00038704,2]
[349150082,1736995832313,-405.0,0.00038714,4]
[349150083,1736995832323,-7890.17,0.00038714,2]
[349150084,1736995832332,-7890.17,0.00038725,2]
[349150085,1736995832342,-250.0,0.00038732,2]
[349150086,1736995832352,-7890.17,0.00038735,2]
[349150087,1736995832362,-7890.17,0.00038745,2]
[349150088,1736995832371,-7890.17,0.00038755,2]
[349150089,1736995832381,-7890.17,0.00038765,2]
[349150090,1736995832570,-7890.17,0.00038775,2]
[349150091,1736995832581,-7890.17,0.00038786,2]
[349150092,1736995832592,-7890.17,0.00038796,2]
[349150093,1736995832603,-7890.17,0.00038806,2]
[349150094,1736995832614,-7890.17,0.00038816,2]
[349150095,1736995832625,-7890.17,0.00038826,2]
[349150096,1736995832637,-7890.17,0.00038837,2]
[349150097,1736995832648,-7890.17,0.00038847,2]
[349150098,1736995832659,-7890.17,0.00038857,2]
[349150099,1736995832672,-7890.17,0.00038867,2]
[349150100,1736995832689,-7890.17,0.00038877,2]
[349150101,1736995832700,-568.9,0.00038922,2]
[349150102,1736995832713,-637.423,0.00038922,2]
[349150103,1736995832724,-1862.0,0.00038922,2]
[349150104,1736995832735,-820.0,0.00038922,2]
[349150105,1736995832747,-2945.0,0.00038922,2]
[349150107,1736995832758,-1260.0,0.00038922,2]
[349150109,1736995832768,-906.0,0.00038922,2]
[349150110,1736995832779,-537.0,0.00038922,2]
[349150111,1736995832789,-3980.0,0.00038922,2]
[349150112,1736995832801,-3898.0,0.00038922,2]
[349150113,1736995832812,-1174.0,0.00038922,2]
[349150114,1736995832822,-150.0,0.00038922,2]
[349150115,1736995832833,-1500.0,0.00038965,2]
[349150116,1736995832843,-1141.65,0.00039041,2]
[349150117,1736995832853,-437.23,0.00039078,2]
[349150118,1736995832863,-163.61,0.00039184,2]
[349150119,1736995832874,-9243.58158282,0.000392,7]
[349150120,1736995832887,-953.41841718,0.000392,7]
[349150121,1736995832898,-2004.54,0.000395,120]
[349150122,1736995832908,-1955.14,0.0003965,60]
[349150123,1736995832918,-7278.61,0.000397,2]
[349150124,1736995832935,-441.37,0.00039726,2]
[349150125,1736995832946,-775.13,0.00039726,2]
[349150126,1736995832958,-20000.0,0.00039798,120]
[349150127,1736995832968,-1629.244,0.00039799,56]
[349150128,1736995832980,-158.71232177,0.00039799,56]
[349150129,1736995832991,-192085.57393228,0.000398,120]
[349150130,1736995833004,-59042.4287161,0.000398,120]
[349150131,1736995833017,-39741.35080645,0.000398,120]
[349150132,1736995833031,-120156.4822785,0.000398,120]
[349150133,1736995833042,-6688.0243859,0.00039803,2]
[349150134,1736995833052,-743.1138207,0.00039803,2]
[349150135,1736995833063,-3214.7779791,0.00039803,2]
[349150136,1736995833073,-167.9,0.0003983,2]
[349150137,1736995833084,-205.95330732,0.000399,8]
[349150138,1736995833096,-205.95330717,0.000399,8]
[349150139,1736995833106,-205.95330717,0.000399,8]
[349150140,1736995833117,-205.95330717,0.000399,8]
[349150141,1736995833127,-205.95330717,0.000399,8]
[349150142,1736995833139,-205.95330717,0.000399,8]
[349150143,1736995833149,-205.95330717,0.00039934,8]
[349150144,1736995833159,-790.0,0.0004,5]
[349150145,1736995833173,-1226.88262914,0.0004,2]
[349150146,1736995833188,-364570.11737086,0.0004,2]
[349150147,1736995833199,-516.45,0.0004,14]
[349150148,1736995833210,-500.0,0.0004,120]
[349150149,1736995833221,-2059.0,0.0004,117]
[349150150,1736995833231,-156.81,0.0004,2]
[349150151,1736995833242,-205.95330717,0.00040107,8]
[349150152,1736995833252,-205.95330717,0.00040279,8]
[349150153,1736995833263,-205.95330717,0.00040452,8]
[349150154,1736995833273,-205.95330717,0.00040624,8]
[349150155,1736995833283,-367.56,0.00040626,2]
[349150156,1736995833293,-165.58,0.00040762,2]
[349150157,1736995833303,-205.95330717,0.00040797,8]
[349150158,1736995833313,-151.0,0.00040849,120]
[349150159,1736995833323,-205.95330717,0.00040969,9]
[349150160,1736995833332,-205.95330717,0.00041141,9]
[349150161,1736995833342,-205.95330717,0.00041314,9]
[349150162,1736995833352,-794.98588208,0.00041397,120]
[349150163,1736995833361,-205.95330717,0.00041486,9]
[349150164,1736995833371,-205.95330717,0.00041659,9]
[349150165,1736995833381,-205.95330717,0.00041831,9]
[349150166,1736995833391,-1011.0,0.000419,7]
[349150167,1736995833400,-1174.0,0.00041922,2]
[349150168,1736995833410,-1511.4980396,0.00042,120]
[349150169,1736995833424,-1784.58000001,0.00042,120]
[349150170,1736995833436,-96690.36022647,0.00042,120]
[349150171,1736995833445,-5000.0,0.00042,40]
[349150172,1736995833455,-550.0,0.00042,120]
[349150173,1736995833464,-205.95330717,0.00042003,9]
[349150174,1736995833474,-1000.0,0.000421,7]
[349150175,1736995833484,-205.95330717,0.00042176,9]
[349150176,1736995833494,-516.45,0.000423,60]
[349150177,1736995833504,-299.95,0.00042346,120]
[349150178,1736995833514,-205.95330717,0.00042348,9]
[349150179,1736995833525,-1000.0,0.00042417,2]
[349150180,1736995833534,-205.95330717,0.00042521,9]
[349150181,1736995833543,-306.77422227,0.00042633,120]
[349150182,1736995833553,-44.20139504,0.00042658,120]
[349150183,1736995833565,-106.79860496,0.00042658,120]
[349150184,1736995833575,-205.95330717,0.00042693,9]
[349150185,1736995833585,-205.95330717,0.00042866,9]
[349150186,1736995833595,-1000.0,0.00042876,120]
[349150187,1736995833605,-581.2947807,0.00042876,120]
[349150188,1736995833618,-418.7052193,0.00042876,120]
[349150189,1736995833628,-1000.0,0.00042876,120]
[349150190,1736995833638,-1000.0,0.00042876,120]
[349150191,1736995833648,-1000.0,0.00042876,120]
[349150192,1736995833658,-1000.0,0.00042876,120]
[349150193,1736995833668,-253.99590623,0.00042876,120]
[349150194,1736995833682,-26196.81355071,0.00042878,120]
[349150195,1736995833692,-93825.44414645,0.0004288,2]
[349150196,1736995833702,-1000.0,0.00042888,120]
[349150197,1736995833712,-367.56,0.0004289,2]
[349150198,1736995833722,-611.0,0.0004297,120]
[349150199,1736995833732,-156.81,0.00042977,2]
[349150200,1736995833743,-611.0,0.0004298,120]
[349150201,1736995833752,-611.0,0.00042983,120]
[349150202,1736995833762,-5923.6787418,0.00042983,2]
[349150203,1736995833773,-658.1865269,0.00042983,2]
[349150204,1736995833783,-2847.3747815,0.00042983,2]
[349150205,1736995833793,-6549.07339731,0.00042987,31]
[349150206,1736995833804,-611.0,0.0004299,120]
[349150207,1736995833814,-156.81,0.0004299,2]
[349150208,1736995833824,-156.81,0.0004299,2]
[349150209,1736995833834,-156.81,0.0004299,2]
[349150210,1736995833844,-611.0,0.00042993,120]
[349150211,1736995833854,-611.0,0.00042993,120]
[349150212,1736995833865,-1000.0,0.00042999,120]
[349150213,1736995833877,-63347.76263899,0.00043,37]
[349150214,1736995833887,-987365.5740357,0.00043,4]
[349150215,1736995833897,-900.0,0.00043,120]
[349150216,1736995833910,-160.0,0.00043,120]
[349150217,1736995833923,-8000.0,0.00043,2]
[349150218,1736995833936,-8000.0,0.00043,2]
[349150219,1736995833946,-8000.0,0.00043,2]
[349150220,1736995833956,-8026.75252133,0.00043,2]
[349150221,1736995833965,-8000.0,0.00043,2]
[349150222,1736995833975,-8000.0,0.00043,2]
[349150223,1736995833985,-8000.0,0.00043,2]
[349150224,1736995833994,-8000.0,0.00043,2]
[349150225,1736995834003,-8000.0,0.00043,2]
[349150226,1736995834014,-8000.0,0.00043,2]
[349150227,1736995834025,-5058.895,0.00043,50]
[349150228,1736995834035,-190.0,0.00043,31]
[349150229,1736995834046,-2001.03,0.00043,32]
[349150230,1736995834057,-3599.7932739,0.00043,4]
[349150231,1736995834067,-156.81,0.00043003,2]
[349150232,1736995834078,-611.0,0.00043003,120]
[349150233,1736995834089,-611.0,0.00043003,120]
[349150234,1736995834103,-500.0,0.00043012,7]
[349150235,1736995834113,-196.45747328,0.00043013,2]
[349150236,1736995834123,-500.0,0.00043013,18]
[349150237,1736995834135,-500.0,0.00043013,18]
[349150238,1736995834145,-501.31473848,0.00043013,18]
[349150239,1736995834155,-500.0,0.00043013,7]
[349150240,1736995834167,-500.0,0.00043013,7]
[349150241,1736995834184,-501.77039697,0.00043013,18]
[349150242,1736995834194,-500.0,0.00043013,18]
[349150243,1736995834205,-470.57078961,0.00043013,18]
[349150244,1736995834216,-500.66705412,0.00043013,18]
[349150245,1736995834226,-200.27453771,0.00043013,18]
[349150246,1736995834237,-500.68520741,0.00043013,18]
[349150247,1736995834247,-500.0,0.00043013,18]
[349150248,1736995834257,-501.02019537,0.00043013,18]
[349150249,1736995834268,-501.24913253,0.00043013,18]
[349150250,1736995834279,-500.9576725,0.00043013,18]
[349150251,1736995834289,-501.47966195,0.00043013,18]
[349150252,1736995834299,-500.0,0.00043013,18]
[349150253,1736995834314,-820.181925,0.00043013,18]
[349150254,1736995834324,-820.181925,0.00043013,18]
[349150255,1736995834334,-820.181925,0.00043013,18]
[349150256,1736995834345,-820.181925,0.00043013,18]
[349150257,1736995834355,-820.181925,0.00043013,18]
[349150258,1736995834367,-820.181925,0.00043013,18]
[349150259,1736995834377,-820.181925,0.00043013,18]
[349150260,1736995834387,-820.181925,0.00043013,18]
[349150261,1736995834397,-820.181925,0.00043013,18]
[349150262,1736995834407,-820.181925,0.00043013,18]
[349150263,1736995834431,-820.181925,0.00043013,18]
[349150264,1736995834440,-820.181925,0.00043013,18]